Workbook

Sheet Instructivo
A1: CRITERIO DE PRIORIZACIÓN DE TRÁMITES ADMINISTRATIVOS
A2: Instructivo
A3: Consideraciones generales
A5: En las hojas “COSTO DE ADMINISTRACIÓN PÚBLICA”y “RESUMEN” para añadir más trámites y que apliquen las fórmulas, se deberá seleccionar la primera fila y copiarla una por cada trámite de la entidad
A7: Todas las hojas tienen columnas de color celeste, en las cuales NO deben ingresar valores ya que contienen fórmulas.
A8: Para la carga en GOB.EC. La institución debe recordar que el peso máximo del archivo es de 2 MB.
A9: Esquema de puntuación
A10: Para priorizar un trámite, se realizará un análisis de criterios básicos y adicionales basado en información que disponen las instituciones sujetas a esta norma técnica. Cada criterio será puntuado según los lineamientos presentes en esta norma.
A11: a) Demanda Anual
A12: Considerará el volumen o frecuencia de las solicitudes que ingresan al año a cada institución para la gestión de un trámite en particular.
A13: La identificación del volumen anual de los trámites se realizará a través de sus registros de transacciones y/o el número de visitas de consulta de información realizadas a través de páginas web institucionales.
A14: Para realizar el registro realice lo siguiente:
A15: 1.- Seleccione la hoja DEMANDA ANUAL
A16: 2.- Ingrese los trámites de la institución registrando el identificador y nombre en las columnas respectivas.
A17: 3.- Para cada trámite debe especificar en la columna DEMANDA ANUAL el volumen o frecuencia anual, de acuerdo a lo mencionado anteriormente.
A18: 4.- Una vez terminado el llenado solicitado presione el botón PUNTUACIÓN, se ordenara de menor a mayor.
A19: 5.- Usted visualizará el ordenamiento de los trámites ingresados de acuerdo al número de volumen o frecuencia anual.
A20: 6.- Así mismo, usted visualizará el puntaje obtenido en la columna PUNTUACIÓN de acuerdo al grupo obtenido por cada trámite de acuerdo al número de volumen o frecuencia anual cosiderando lo siguiente: ** Primer grupo (trámites con menor demanda no incluye los trámites con demanda 0 ) = 3 ** Segundo grupo (trámites con demanda intermedia) = 6 ** Tercer grupo (trámites con mayor demanda) = 10
A21: Cada vez que requiera actualizar el puntaje presionando el botón puntuación, debe verificar que la celda de la columna puntaje se encuentren vacías, es decir, se debe borrar cualquier valor de puntaje obtenido previamente.
A22: b) Volumen de quejas asociadas a un trámite:
A23: Considerará la cantidad de quejas recibidas en relación a un trámite durante un año. Estas quejas deberán estar documentadas en medios físicos y/o digitales.
A24: Para determinar la puntuación, se colocará en una tabla todos los trámites con sus correspondientes quejas ordenándose de menor a mayor. Se dividirá en 2 partes en los que cada grupo contenga la misma cantidad de trámites.
A25: Para realizar el registro realice lo siguiente:
A26: 1.- Seleccione la hoja VOLUMEN DE QUEJAS
A27: 2.- Ingrese los trámites de la institución registrando el identificador y nombre en las columnas respectivas. Si usted requiere de acuerdo al número de trámites copie filas adicionales que estén dentro del cuadro
A28: 3.- Para cada trámite debe especificar en la columna VOLUMEN QUEJAS el número de quejas anual, de acuerdo a lo mencionado anteriormente.
A29: 4.- Una vez terminado el llenado solicitado presione el botón PUNTUACIÓN.
A30: 5.- Usted visualizará el ordenamiento de los trámites ingresados de acuerdo al número de volumen o frecuencia anual.
A31: 6.- Así mismo, usted visualizará el puntaje obtenido en la columna PUNTUACIÓN de acuerdo al grupo obtenido por cada trámite de acuerdo al número de volumen o frecuencia anual cosiderando lo siguiente: La puntuación se basará en los siguientes grupos: ** Primer grupo (trámites con menor cantidad de quejas, no incluye los trámites con queja 0 ) = 4 ** Segundo grupo (trámites con mayor porcentaje de quejas) = 10
A32: El valor del volumen de quejas no debe ser superior al valor del volumen de la demana, no le permitirá registrar un valor.
A33: c) Costo para la administración pública:
A34: En cada trámite, basado en un caso estándar, se deberá estimar el costo incurrido en el costo de personal y recursos necesarios para su atención desde que el administrado entregó todos los requisitos hasta que la institución entregue el producto, respuesta o servicio requerido en el trámite. Se considerará:
A35: • Costo de personal:
A36: Costo del personal para atender el trámite, se excluyen actividades realizadas automáticamente o que dependen del administrado. El tiempo deberá considerar únicamente el tiempo efectivo de trabajo del personal, no debe considerar el tiempo de espera o de movimiento.
A37: • Costo de recursos:
A38: Se deberá considerar el costo directo en el que la institución debe incurrir para atender un trámite. Se debe considerar los insumos o materia prima necesaria u cualquier otro que la institución considere pertinente.
A39: Para realizar el registro realice lo siguiente:
A40: 1.- Seleccione la hoja COSTO ADMINISTRACIÓN PÚBLICA
A41: 2.- Ingrese los trámites de la institución registrando el identificador y nombre en las columnas respectivas. Si usted requiere de acuerdo al número de trámites copie filas adicionales que estén dentro del cuadro
A42: 3.- Para calcular el tiempo de las actividades, utilizar la hoja AUXILIAR COSTO ADMINISTRACIÓN donde deberá listar todas las actividades que realiza la institución en un caso estándar y asignar el tiempo mínimo que toma cada actvidad (en horas). El tiempo total de las actividades, deberá ingresar en la correspondiente celda de la hoja COSTO ADMINISTRACIÓN PÚBLICA
A43: 4.- En función de la información registrada en el paso 3, la matriz entregará el costo del personal
A44: 5.- Completar la columna "Costo recursos", en la cual ingresará el costo directo en el que incurre la institución para entregar el trámite. En este valor se considerarán los valores correspondientes a insumos y/o materia prima mínimos que se invierten por cada trámite (no se considera mano de obra)
A45: 6.- La columna "Costo para la adm. pública" mostrará el costto de este criterio para cada trámite
A46: 7,- Para que la fórmula funcione debe arrastrar hacia abajo al último de los támites ingresados, no copiar
A47: 7.- Una vez que disponga del Costo para la administración pública, presionar el botón "GENERAR".
A48: 8. Visualizar la hoja “RESUMEN DE COSTO AP” en la que va a encontrar copiada las celdas necesarias para el ordenamiento y puntuación de las mismas al presionar el botón “PUNTUACIÓN”
A50: d) Tiempo de respuesta:
A51: Considerará los tiempos que a las instituciones les toma dar respuesta a un trámite desde que reciben la solicitud del administrado hasta la finalización del mismo. Para la definición del tiempo se considerará un caso estándar.
A52: Para determinar la puntuación, se colocará en una tabla todos los trámites con el tiempo de respuesta, ordenándose de menor a mayor. Se dividirá en 4 grupos, en los que cada uno contenga la misma cantidad de trámites.
A53: Para realizar el registro realice lo siguiente:
A54: 1.- Seleccione la hoja TIEMPO DE RESPUESTA
A55: 2.- Ingrese los trámites de la institución registrando el identificador y nombre en las columnas respectivas. Si usted requiere de acuerdo al número de trámites copie filas adicionales que estén dentro del cuadro
A56: 3.- Para cada trámite debe especificar en la columna TIEMPO RESPUESTA el tiempo, de acuerdo a lo mencionado anteriormente.
A57: 4.- Una vez terminado el llenado solicitado presione el botón PUNTUACIÓN.
A58: 5.- Usted visualizará el ordenamiento de los trámites ingresados de acuerdo al número de volumen o frecuencia anual.
A59: 6.- Así mismo, usted visualizará el puntaje obtenido en la columna PUNTUACIÓN de acuerdo al grupo obtenido por cada trámite de acuerdo al número de volumen o frecuencia anual cosiderando lo siguiente: La puntuación considera lo siguiente: ** Primer grupo (menor o igual a 40 horas laboralres) = 0 ** Segundo grupo mayor 40 horas laboralres) = 30
A60: e) Canal de atención:
A61: Considerará los canales de atención a través de los cuales el administrado puede iniciar el trámite.
A62: Para realizar el registro realice lo siguiente:
A63: 1.- Seleccione la hoja CANAL ATENCIÓN
A64: 2.- Ingrese los trámites de la institución registrando el identificador y nombre en las columnas respectivas. Si usted requiere de acuerdo al número de trámites copie filas adicionales que estén dentro del cuadro
A65: 3.- Para cada trámite debe seleccionar el canal de atención del trámite en la columna CANAL ATENCIÓN, que pueden ser: El trámite se puede completar totalmente en línea: Se considera trámite totalmente en línea cuando el administrado no requiere realizar ninguna interacción presencial con la institución = 0 El trámite no se puede completar totalmente en línea: Se considera este caso, cuando el trámite incluye al menos una actividad, incluido mecanismos de pago, en la que el administrado deba acudir presencialmente a la institución, para la realización de dicho trámite. Los trámites presenciales se consideran dentro de esta categoría = 10
A66: 4.- De acuerdo a la selección usted obtendrá la puntuación del trámite que se visualizará en la columna PUNTUACIÓN.
A68: f) Resumen
A69: En esta hoja deberá consolidar todas las puntuaciones obtenidas para cada trámite en los criterios a) hasta e). Adicionalmente deberá analizar los criterios adicionales que dispone la norma técnica, para estos últimos solamente deberá seleccionar en la celda correspondiente y la matriz asignará la puntuación adicional. Los criterios que deberá considerar son: - NECESIDADES CIUDADANAS: Si la institución ha implementado mecanismos para identificar necesidades ciudadanas respecto al trámite, seleccionar "SI", caso contrario, seleccionar "NO" - SUSCEPTIBILIDAD A CORRUPCIÓN: Si la institución dispone de información documentada sobre presuntos actos de corrupción, seleccionar "SI", caso contrario, seleccionar "NO" - VOLUMEN DE DEVOLUCIONES: Si la institución posee documentación sobre devoluciones del trámite en una cantidad significativa, seleccionar "SI", caso contrario, seleccionar "NO" Para que funcione la lista depelgable debe arrastrar la lista y la puntuación hacia abajo al último de los támites ingresados, no copiar
A70: En la columna puntaje total se realizará la sumatoria de los valores de los criterios básicos y adicionales. Este valor deberá registrarse en la plataforma GOB.EC

Sheet RESUMEN
A7: MATRIZ RESUMEN DE LA PRIORIZACIÓN DE TRÁMITES ADMINISTRATIVOS
C9: BÁSICOS | H9: ADICIONALES
A10: ID trámite | B10: Nombre del trámite | C10: Demanda | D10: Quejas | E10: Costo para administración | F10: Tiempo de respuesta | G10: Canal de atención | H10: Necesidades ciudadanas | J10: Susceptibilidad a corrupción | L10: Volumen de devoluciones | N10: PUNTAJE TOTAL
H11: Criterio | I11: Puntuación | J11: Criterio | K11: Puntuación | L11: Criterio | M11: Puntuación | U11: demanda | V11: 0 | W11: 3 | X11: 6 | Y11: 10
A12: CFN-004-01-01 | B12: Estructuracíon de fideicomisos de garantias para personas naturales | C12: 0 | D12: 0 | E12: 10 | F12: 30 | G12: 10 | H12: NO | I12: =IF(H12="SI",5,0) -> 0 | J12: SI | K12: =IF(J12="SI",10,0) -> 10 | L12: NO | M12: =IF(L12="SI",5,0) -> 0 | N12: =SUM(C12:G12,I12,K12,M12) -> 60 | U12: quejas | V12: 0 | W12: 4 | X12: 10
A13: CFN-004-01-02 | B13: Estructuracíon de fideicomisos de administración para personas naturales | C13: 0 | D13: 0 | E13: 10 | F13: 30 | G13: 10 | H13: NO | I13: =IF(H13="SI",5,0) -> 0 | J13: SI | K13: =IF(J13="SI",10,0) -> 10 | L13: NO | M13: =IF(L13="SI",5,0) -> 0 | N13: =SUM(C13:G13,I13,K13,M13) -> 60 | U13: cpa | V13: 5 | W13: 10 | X13: 20
A14: CFN-004-01-03 | B14: Estructuración de fideicomisos de inmobiliario para personas naturales | C14: 0 | D14: 0 | E14: 10 | F14: 30 | G14: 10 | H14: NO | I14: 0 | J14: SI | K14: 10 | L14: NO | M14: 0 | N14: 60 | U14: tr | V14: 0 | W14: 30
A15: CFN-004-01-10 | B15: Estructuración de fideicomisos de inversión para personas jurídicas | C15: 0 | D15: 0 | E15: 10 | F15: 30 | G15: 10 | H15: NO | I15: 0 | J15: SI | K15: 10 | L15: NO | M15: 0 | N15: 60 | U15: ca | V15: 0 | W15: 10
A16: CFN-004-01-13 | B16: Estructuración de Encargos Fiduciarios para personas naturales | C16: 0 | D16: 0 | E16: 10 | F16: 30 | G16: 10 | H16: NO | I16: 0 | J16: SI | K16: 10 | L16: NO | M16: 0 | N16: 60 | V16: SI | W16: NO
A17: CFN-004-01-14 | B17: Estructuración de Encargos Fiduciarios para personas jurídicas | C17: 0 | D17: 0 | E17: 10 | F17: 30 | G17: 10 | H17: NO | I17: 0 | J17: SI | K17: 10 | L17: NO | M17: 0 | N17: 60
A18: CFN-004-01-06 | B18: Estructuración de fideicomisos de garantía para personas jurídicas | C18: 0 | D18: 0 | E18: 10 | F18: 30 | G18: 10 | H18: NO | I18: 0 | J18: SI | K18: 10 | L18: NO | M18: 0 | N18: 60
A19: CFN-004-01-07 | B19: Estructuración de fideicomisos de administración para personas jurídicas | C19: 3 | D19: 0 | E19: 20 | F19: 30 | G19: 10 | H19: NO | I19: 0 | J19: SI | K19: 10 | L19: NO | M19: 0 | N19: 73
A20: CFN-004-01-04 | B20: Estructuración de fideicomisos de titularización para personas naturales | C20: 0 | D20: 0 | E20: 10 | F20: 30 | G20: 10 | H20: NO | I20: 0 | J20: SI | K20: 10 | L20: NO | M20: 0 | N20: 60
A21: CFN-004-01-05 | B21: Estructuración de fideicomisos de inversión para personas naturales | C21: 0 | D21: 0 | E21: 10 | F21: 30 | G21: 10 | H21: NO | I21: 0 | J21: SI | K21: 10 | L21: NO | M21: 0 | N21: 60
A22: CFN-004-01-08 | B22: Estructuración de fideicomisos inmobiliario para personas jurídicas | C22: 0 | D22: 0 | E22: 10 | F22: 30 | G22: 10 | H22: NO | I22: 0 | J22: SI | K22: 10 | L22: NO | M22: 0 | N22: 60
A23: CFN-004-01-09 | B23: Estructuración de fideicomisos de titularización para personas jurídicas | C23: 0 | D23: 0 | E23: 10 | F23: 30 | G23: 10 | H23: NO | I23: 0 | J23: SI | K23: 10 | L23: NO | M23: 0 | N23: 60
A24: CFN-003-01-18 | B24: Crédito de primer piso - contingentes (Persona Jurídica) | C24: 0 | D24: 0 | E24: 20 | F24: 30 | G24: 10 | H24: SI | I24: =IF(H24="SI",5,0) -> 5 | J24: SI | K24: =IF(J24="SI",10,0) -> 10 | L24: NO | M24: =IF(L24="SI",5,0) -> 0 | N24: =SUM(C24:G24,I24,K24,M24) -> 75
A25: CFN-003-01-07 | B25: Crédito de primer piso - contingentes (Persona Natural) | C25: 0 | D25: 0 | E25: 20 | F25: 30 | G25: 10 | H25: SI | I25: =IF(H25="SI",5,0) -> 5 | J25: SI | K25: =IF(J25="SI",10,0) -> 10 | L25: NO | M25: =IF(L25="SI",5,0) -> 0 | N25: =SUM(C25:G25,I25,K25,M25) -> 75
A26: CFN-003-04-26 | B26: Crédito de primer piso - Especiales - Apoyo a políticas públicas (Persona Jurídica) | C26: 0 | D26: 0 | E26: 20 | F26: 30 | G26: 10 | H26: SI | I26: 5 | J26: SI | K26: 10 | L26: NO | M26: 0 | N26: 75
A27: CFN-003-04-13 | B27: Crédito de primer piso - Especiales - Apoyo a políticas públicas (Persona Natural) | C27: 0 | D27: 0 | E27: 20 | F27: 30 | G27: 10 | H27: SI | I27: 5 | J27: SI | K27: 10 | L27: NO | M27: 0 | N27: 75
A28: CFN-003-02-04 | B28: Crédito de primer piso - activo fijo (Persona Jurídica) | C28: 6 | D28: 10 | E28: 20 | F28: 30 | G28: 10 | H28: SI | I28: 5 | J28: SI | K28: 10 | L28: NO | M28: 0 | N28: 91
A29: CFN-003-02-01 | B29: Crédito de primer piso - activo fijo (Persona Natural) | C29: 6 | D29: 0 | E29: 20 | F29: 30 | G29: 10 | H29: SI | I29: 5 | J29: SI | K29: 10 | L29: NO | M29: 0 | N29: 81
A30: CFN-003-01-05 | B30: Crédito de primer piso - factoring (Persona Natural o Jurídica) | C30: 3 | D30: 10 | E30: 20 | F30: 30 | G30: 10 | H30: SI | I30: 5 | J30: SI | K30: 10 | L30: NO | M30: 0 | N30: 88
A31: CFN-003-01-13 | B31: Crédito de primer piso - crédito directo (Persona Jurídica) | C31: 6 | D31: 0 | E31: 20 | F31: 30 | G31: 10 | H31: SI | I31: 5 | J31: SI | K31: 10 | L31: NO | M31: 0 | N31: 81
A32: CFN-003-01-01 | B32: Crédito de primer piso - crédito directo (Persona Natural) | C32: 10 | D32: 0 | E32: 20 | F32: 30 | G32: 10 | H32: SI | I32: 5 | J32: SI | K32: 10 | L32: NO | M32: 0 | N32: 85
A33: CFN- | B33: Concesión de crédito segundo piso (Capital de trabajo) a través de las Instituciones Financieras Intermediarias IFIs | C33: 3 | D33: 0 | E33: 5 | F33: 30 | G33: 10 | H33: NO | I33: =IF(H33="SI",5,0) -> 0 | J33: SI | K33: =IF(J33="SI",10,0) -> 10 | L33: NO | M33: =IF(L33="SI",5,0) -> 0 | N33: =SUM(C33:G33,I33,K33,M33) -> 58
A34: CFN-010-03-01 | B34: Atención de denuncias recibidas directamente del usuario financiero | C34: 0 | D34: 0 | E34: 5 | F34: 30 | G34: 0 | H34: NO | I34: =IF(H34="SI",5,0) -> 0 | J34: SI | K34: =IF(J34="SI",10,0) -> 10 | L34: NO | M34: =IF(L34="SI",5,0) -> 0 | N34: =SUM(C34:G34,I34,K34,M34) -> 45
A35: CFN-010-01-01 | B35: Atención de quejas recibidas directamente del usuario financiero | C35: 0 | D35: 0 | E35: 5 | F35: 30 | G35: 0 | H35: NO | I35: 0 | J35: SI | K35: 10 | L35: NO | M35: 0 | N35: 45
A36: CFN-010-02-01 | B36: Atención de reclamaciones recibidas directamente del usuario financiero | C36: 0 | D36: 0 | E36: 5 | F36: 30 | G36: 0 | H36: NO | I36: 0 | J36: SI | K36: 10 | L36: NO | M36: 0 | N36: 45
A37: CFN-010-04-01 | B37: Atención de sugerencias del usuario financiero | C37: 0 | D37: 0 | E37: 5 | F37: 30 | G37: 0 | H37: NO | I37: 0 | J37: SI | K37: 10 | L37: NO | M37: 0 | N37: 45
A38: CFN-010-05-01 | B38: Atención a solicitudes de acceso a información pública | C38: 3 | D38: 0 | E38: 5 | F38: 30 | G38: 0 | H38: NO | I38: =IF(H38="SI",5,0) -> 0 | J38: SI | K38: =IF(J38="SI",10,0) -> 10 | L38: NO | M38: =IF(L38="SI",5,0) -> 0 | N38: =SUM(C38:G38,I38,K38,M38) -> 48
A39: CFN-008-01-01 | B39: Aceptación de Garantía para acceso al crédito Por parte de la entidad crediticia | C39: 3 | D39: 0 | E39: 5 | F39: 0 | G39: 0 | H39: NO | I39: 0 | J39: SI | K39: 10 | L39: NO | M39: 0 | N39: 18
A40: CFN-006-01-02 | B40: Intermediación bursátil ofrecido por la CFN. B.P. a empresas del sector público | C40: 3 | D40: 0 | E40: 5 | F40: 0 | G40: 0 | H40: NO | I40: 0 | J40: SI | K40: 10 | L40: NO | M40: 0 | N40: 18
A41: CFN- | B41: Requerimiento de capacitación sobre educación financiera y desarrollo de capacidades para todo público | C41: 10 | D41: 4 | E41: 5 | F41: 0 | G41: 0 | H41: NO | I41: 0 | J41: SI | K41: 10 | L41: NO | M41: 0 | N41: 29
A42: CFN-009-01-04 | B42: Emisión de otras certificaciones relativas a los financiamientos de la Institución para personas jurídicas | C42: 10 | D42: 0 | E42: 5 | F42: 0 | G42: 0 | H42: NO | I42: 0 | J42: SI | K42: 10 | L42: NO | M42: 0 | N42: 25
A43: CFN-009-02-04 | B43: Emisión de otras certificaciones relativas a los financiamientos de la Institución para personas naturales | C43: 10 | D43: 0 | E43: 5 | F43: 0 | G43: 0 | H43: NO | I43: 0 | J43: SI | K43: 10 | L43: NO | M43: 0 | N43: 25
A44: CFN- | B44: Requerimiento de Asesoría Financiera Empresarial | C44: 10 | D44: 0 | E44: 5 | F44: 0 | G44: 0 | H44: NO | I44: 0 | J44: SI | K44: 10 | L44: NO | M44: 0 | N44: 25
A45: CFN- | B45: Solución de obligaciones crediticias de primer piso | C45: 6 | D45: 0 | E45: 20 | F45: 30 | G45: 10 | H45: SI | I45: 5 | J45: SI | K45: 10 | L45: NO | M45: 0 | N45: 81

Sheet DEMANDA ANUAL
A1: PRIORIZACIÓN DE TRÁMITES ADMINISTRATIVOS
A2: DEMANDA ANUAL
A4: IDENTIFICADOR | B4: TRÁMITE | C4: DEMANDA ANUAL | D4: PUNTAJE
A5: CFN-010-03-01 | B5: Atención de denuncias recibidas directamente del usuario financiero | C5: 0 | D5: 0
A6: CFN-010-01-01 | B6: Atención de quejas recibidas directamente del usuario financiero | C6: 0 | D6: 0
A7: CFN-010-02-01 | B7: Atención de reclamaciones recibidas directamente del usuario financiero | C7: 0 | D7: 0
A8: CFN-010-04-01 | B8: Atención de sugerencias del usuario financiero | C8: 0 | D8: 0
A9: CFN-003-01-18 | B9: Crédito de primer piso - contingentes (Persona Jurídica) | C9: 0 | D9: 0
A10: CFN-003-01-07 | B10: Crédito de primer piso - contingentes (Persona Natural) | C10: 0 | D10: 0
A11: CFN-003-04-26 | B11: Crédito de primer piso - Especiales - Apoyo a políticas públicas (Persona Jurídica) | C11: 0 | D11: 0
A12: CFN-003-04-13 | B12: Crédito de primer piso - Especiales - Apoyo a políticas públicas (Persona Natural) | C12: 0 | D12: 0
A13: CFN-004-01-14 | B13: Estructuración de Encargos Fiduciarios para personas jurídicas | C13: 0 | D13: 0
A14: CFN-004-01-13 | B14: Estructuración de Encargos Fiduciarios para personas naturales | C14: 0 | D14: 0
A15: CFN-004-01-02 | B15: Estructuracíon de fideicomisos de administración para personas naturales | C15: 0 | D15: 0
A16: CFN-004-01-06 | B16: Estructuración de fideicomisos de garantía para personas jurídicas | C16: 0 | D16: 0
A17: CFN-004-01-01 | B17: Estructuracíon de fideicomisos de garantia para personas naturales | C17: 0 | D17: 0
A18: CFN-004-01-03 | B18: Estructuración de fideicomisos de inmobiliario para personas naturales | C18: 0 | D18: 0
A19: CFN-004-01-10 | B19: Estructuración de fideicomisos de inversión para personas jurídicas | C19: 0 | D19: 0
A20: CFN-004-01-05 | B20: Estructuración de fideicomisos de inversión para personas naturales | C20: 0 | D20: 0
A21: CFN-004-01-09 | B21: Estructuración de fideicomisos de titularización para personas jurídicas | C21: 0 | D21: 0
A22: CFN-004-01-04 | B22: Estructuración de fideicomisos de titularización para personas naturales | C22: 0 | D22: 0
A23: CFN-004-01-08 | B23: Estructuración de fideicomisos inmobiliario para personas jurídicas | C23: 0 | D23: 0
A24: CFN-006-01-02 | B24: Intermediación bursátil ofrecido por la CFN. B.P. a empresas del sector público | C24: 1 | D24: 3
A25: CFN- | B25: Concesión de crédito segundo piso (Capital de trabajo) a través de las Instituciones Financieras Intermediarias IFIs | C25: 8 | D25: 3
A26: CFN-004-01-07 | B26: Estructuración de fideicomisos de administración para personas jurídicas | C26: 9 | D26: 3
A27: CFN-003-01-05 | B27: Crédito de primer piso - factoring (Persona Natural o Jurídica) | C27: 11 | D27: 3
A28: CFN-010-05-01 | B28: Atención a solicitudes de acceso a información pública | C28: 22 | D28: 3
A29: CFN- | B29: Solución de obligaciones crediticias de primer piso | C29: 37 | D29: 6
A30: CFN-003-02-04 | B30: Crédito de primer piso - activo fijo (Persona Jurídica) | C30: 47 | D30: 6
A31: CFN-003-02-01 | B31: Crédito de primer piso - activo fijo (Persona Natural) | C31: 94 | D31: 6
A32: CFN-003-01-13 | B32: Crédito de primer piso - crédito directo (Persona Jurídica) | C32: 195 | D32: 6
A33: CFN-009-01-04 | B33: Emisión de otras certificaciones relativas a los financiamientos de la Institución para personas jurídicas | C33: 308 | D33: 6
A34: CFN-003-01-01 | B34: Crédito de primer piso - crédito directo (Persona Natural) | C34: 336 | D34: 10
A35: CFN- | B35: Requerimiento de capacitación sobre educación financiera y desarrollo de capacidades para todo público | C35: 1645 | D35: 10
A36: CFN-009-02-04 | B36: Emisión de otras certificaciones relativas a los financiamientos de la Institución para personas naturales | C36: 1936 | D36: 10
A37: CFN-008-01-01 | B37: Aceptación de Garantía para acceso al crédito Por parte de la entidad crediticia | C37: 2307 | D37: 10
A38: CFN- | B38: Requerimiento de Asesoría Financiera Empresarial | C38: 4125 | D38: 10

Sheet VOLUMEN DE QUEJAS
A1: PRIORIZACIÓN DE TRÁMITES ADMINISTRATIVOS
A2: VOLUMEN DE QUEJAS
A4: IDENTIFICADOR | B4: TRÁMITE | C4: VOLUMEN DEMANDA | D4: VOLUMEN DE QUEJAS | E4: PORCENTAJE | F4: PUNTUACIÓN
A5: CFN-010-03-01 | B5: Atención de denuncias recibidas directamente del usuario financiero | C5: 0 | D5: 0 | E5: 0 | F5: 0
A6: CFN-010-01-01 | B6: Atención de quejas recibidas directamente del usuario financiero | C6: 0 | D6: 0 | E6: 0 | F6: 0
A7: CFN-010-02-01 | B7: Atención de reclamaciones recibidas directamente del usuario financiero | C7: 0 | D7: 0 | E7: 0 | F7: 0
A8: CFN-010-04-01 | B8: Atención de sugerencias del usuario financiero | C8: 0 | D8: 0 | E8: 0 | F8: 0
A9: CFN-003-01-18 | B9: Crédito de primer piso - contingentes (Persona Jurídica) | C9: 0 | D9: 0 | E9: 0 | F9: 0
A10: CFN-003-01-07 | B10: Crédito de primer piso - contingentes (Persona Natural) | C10: 0 | D10: 0 | E10: 0 | F10: 0
A11: CFN-003-04-26 | B11: Crédito de primer piso - Especiales - Apoyo a políticas públicas (Persona Jurídica) | C11: 0 | D11: 0 | E11: 0 | F11: 0
A12: CFN-003-04-13 | B12: Crédito de primer piso - Especiales - Apoyo a políticas públicas (Persona Natural) | C12: 0 | D12: 0 | E12: 0 | F12: 0
A13: CFN-004-01-14 | B13: Estructuración de Encargos Fiduciarios para personas jurídicas | C13: 0 | D13: 0 | E13: 0 | F13: 0
A14: CFN-004-01-13 | B14: Estructuración de Encargos Fiduciarios para personas naturales | C14: 0 | D14: 0 | E14: 0 | F14: 0
A15: CFN-004-01-02 | B15: Estructuracíon de fideicomisos de administración para personas naturales | C15: 0 | D15: 0 | E15: 0 | F15: 0
A16: CFN-004-01-06 | B16: Estructuración de fideicomisos de garantía para personas jurídicas | C16: 0 | D16: 0 | E16: 0 | F16: 0
A17: CFN-004-01-01 | B17: Estructuracíon de fideicomisos de garantia para personas naturales | C17: 0 | D17: 0 | E17: 0 | F17: 0
A18: CFN-004-01-03 | B18: Estructuración de fideicomisos de inmobiliario para personas naturales | C18: 0 | D18: 0 | E18: 0 | F18: 0
A19: CFN-004-01-10 | B19: Estructuración de fideicomisos de inversión para personas jurídicas | C19: 0 | D19: 0 | E19: 0 | F19: 0
A20: CFN-004-01-05 | B20: Estructuración de fideicomisos de inversión para personas naturales | C20: 0 | D20: 0 | E20: 0 | F20: 0
A21: CFN-004-01-09 | B21: Estructuración de fideicomisos de titularización para personas jurídicas | C21: 0 | D21: 0 | E21: 0 | F21: 0
A22: CFN-004-01-04 | B22: Estructuración de fideicomisos de titularización para personas naturales | C22: 0 | D22: 0 | E22: 0 | F22: 0
A23: CFN-004-01-08 | B23: Estructuración de fideicomisos inmobiliario para personas jurídicas | C23: 0 | D23: 0 | E23: 0 | F23: 0
A24: CFN-006-01-02 | B24: Intermediación bursátil ofrecido por la CFN. B.P. a empresas del sector público | C24: 1 | D24: 0 | E24: 0 | F24: 0
A25: CFN- | B25: Concesión de crédito segundo piso (Capital de trabajo) a través de las Instituciones Financieras Intermediarias IFIs | C25: 8 | D25: 0 | E25: 0 | F25: 0
A26: CFN-004-01-07 | B26: Estructuración de fideicomisos de administración para personas jurídicas | C26: 9 | D26: 0 | E26: 0 | F26: 0
A27: CFN-003-01-05 | B27: Crédito de primer piso - factoring (Persona Natural o Jurídica) | C27: 11 | D27: 2 | E27: 18.18181818 | F27: 10
A28: CFN-010-05-01 | B28: Atención a solicitudes de acceso a información pública | C28: 22 | D28: 0 | E28: 0 | F28: 0
A29: CFN- | B29: Solución de obligaciones crediticias de primer piso | C29: 37 | D29: 0 | E29: 0 | F29: 0
A30: CFN-003-02-04 | B30: Crédito de primer piso - activo fijo (Persona Jurídica) | C30: 47 | D30: 19 | E30: 40.42553191 | F30: 10
A31: CFN-003-02-01 | B31: Crédito de primer piso - activo fijo (Persona Natural) | C31: 94 | D31: 0 | E31: 0 | F31: 0
A32: CFN-003-01-13 | B32: Crédito de primer piso - crédito directo (Persona Jurídica) | C32: 195 | D32: 0 | E32: 0 | F32: 0
A33: CFN-009-01-04 | B33: Emisión de otras certificaciones relativas a los financiamientos de la Institución para personas jurídicas | C33: 308 | D33: 0 | E33: 0 | F33: 0
A34: CFN-003-01-01 | B34: Crédito de primer piso - crédito directo (Persona Natural) | C34: 336 | D34: 0 | E34: 0 | F34: 0
A35: CFN- | B35: Requerimiento de capacitación sobre educación financiera y desarrollo de capacidades para todo público | C35: 1645 | D35: 2 | E35: 0.1215805471 | F35: 4
A36: CFN-009-02-04 | B36: Emisión de otras certificaciones relativas a los financiamientos de la Institución para personas naturales | C36: 1936 | D36: 0 | E36: 0 | F36: 0
A37: CFN-008-01-01 | B37: Aceptación de Garantía para acceso al crédito Por parte de la entidad crediticia | C37: 2307 | D37: 0 | E37: 0 | F37: 0
A38: CFN- | B38: Requerimiento de Asesoría Financiera Empresarial | C38: 4125 | D38: 0 | E38: 0 | F38: 0

Sheet RESUMEN DE COSTOS AP
A1: PRIORIZACIÓN DE TRÁMITES ADMINISTRATIVOS
A2: COSTOS PARA LA ADMINISTRACIÓN PÚBLICA
A4: IDENTIFICADOR | B4: TRÁMITE | C4: COSTO PARA LA ADM. PÚBLICA | D4: PUNTUACIÓN
A5: CFN- | B5: Requerimiento de Asesoría Financiera Empresarial | C5: 2 | D5: 5
A6: CFN-009-01-04 | B6: Emisión de otras certificaciones relativas a los financiamientos de la Institución para personas jurídicas | C6: 4.45 | D6: 5
A7: CFN-009-02-04 | B7: Emisión de otras certificaciones relativas a los financiamientos de la Institución para personas naturales | C7: 4.45 | D7: 5
A8: CFN-008-01-01 | B8: Aceptación de Garantía para acceso al crédito Por parte de la entidad crediticia | C8: 15 | D8: 5
A9: CFN-006-01-02 | B9: Intermediación bursátil ofrecido por la CFN. B.P. a empresas del sector público | C9: 57.085 | D9: 5
A10: CFN- | B10: Requerimiento de capacitación sobre educación financiera y desarrollo de capacidades para todo público | C10: 71.875 | D10: 5
A11: CFN-010-03-01 | B11: Atención de denuncias recibidas directamente del usuario financiero | C11: 103.875 | D11: 5
A12: CFN-010-01-01 | B12: Atención de quejas recibidas directamente del usuario financiero | C12: 103.875 | D12: 5
A13: CFN-010-02-01 | B13: Atención de reclamaciones recibidas directamente del usuario financiero | C13: 103.875 | D13: 5
A14: CFN-010-04-01 | B14: Atención de sugerencias del usuario financiero | C14: 103.875 | D14: 5
A15: CFN- | B15: Concesión de crédito segundo piso (Capital de trabajo) a través de las Instituciones Financieras Intermediarias IFIs | C15: 171.4231542 | D15: 5
A16: CFN-004-01-14 | B16: Estructuración de Encargos Fiduciarios para personas jurídicas | C16: 286.25 | D16: 10
A17: CFN-004-01-13 | B17: Estructuración de Encargos Fiduciarios para personas naturales | C17: 286.25 | D17: 10
A18: CFN-004-01-02 | B18: Estructuracíon de fideicomisos de administración para personas naturales | C18: 286.25 | D18: 10
A19: CFN-004-01-06 | B19: Estructuración de fideicomisos de garantía para personas jurídicas | C19: 286.25 | D19: 10
A20: CFN-004-01-01 | B20: Estructuracíon de fideicomisos de garantia para personas naturales | C20: 286.25 | D20: 10
A21: CFN-004-01-03 | B21: Estructuración de fideicomisos de inmobiliario para personas naturales | C21: 286.25 | D21: 10
A22: CFN-004-01-10 | B22: Estructuración de fideicomisos de inversión para personas jurídicas | C22: 286.25 | D22: 10
A23: CFN-004-01-05 | B23: Estructuración de fideicomisos de inversión para personas naturales | C23: 286.25 | D23: 10
A24: CFN-004-01-09 | B24: Estructuración de fideicomisos de titularización para personas jurídicas | C24: 286.25 | D24: 10
A25: CFN-004-01-04 | B25: Estructuración de fideicomisos de titularización para personas naturales | C25: 286.25 | D25: 10
A26: CFN-004-01-08 | B26: Estructuración de fideicomisos inmobiliario para personas jurídicas | C26: 286.25 | D26: 10
A27: CFN-004-01-07 | B27: Estructuración de fideicomisos de administración para personas jurídicas | C27: 443.9447984 | D27: 20
A28: CFN-010-05-01 | B28: Atención a solicitudes de acceso a información pública | C28: 489.3511739 | D28: 20
A29: CFN-003-01-18 | B29: Crédito de primer piso - contingentes (Persona Jurídica) | C29: 1100 | D29: 20
A30: CFN-003-01-07 | B30: Crédito de primer piso - contingentes (Persona Natural) | C30: 1100 | D30: 20
A31: CFN-003-04-26 | B31: Crédito de primer piso - Especiales - Apoyo a políticas públicas (Persona Jurídica) | C31: 1100 | D31: 20
A32: CFN-003-04-13 | B32: Crédito de primer piso - Especiales - Apoyo a políticas públicas (Persona Natural) | C32: 1100 | D32: 20
A33: CFN-003-01-05 | B33: Crédito de primer piso - factoring (Persona Natural o Jurídica) | C33: 1292.738087 | D33: 20
A34: CFN- | B34: Solución de obligaciones crediticias de primer piso | C34: 1348.300838 | D34: 20
A35: CFN-003-02-04 | B35: Crédito de primer piso - activo fijo (Persona Jurídica) | C35: 1923.517281 | D35: 20
A36: CFN-003-02-01 | B36: Crédito de primer piso - activo fijo (Persona Natural) | C36: 2747.034561 | D36: 20
A37: CFN-003-01-13 | B37: Crédito de primer piso - crédito directo (Persona Jurídica) | C37: 4516.720632 | D37: 20
A38: CFN-003-01-01 | B38: Crédito de primer piso - crédito directo (Persona Natural) | C38: 6987.272474 | D38: 20

Sheet COSTO ADMINISTRACIÓN PÚBLICA
A1: PRIORIZACIÓN DE TRÁMITES ADMINISTRATIVOS
A2: COSTOS PARA LA ADMINISTRACIÓN PÚBLICA
A4: IDENTIFICADOR | B4: TRÁMITE | C4: INSUMOS PARA COSTO | F4: COSTO PARA LA ADM. PÚBLICA | H4: SBU | I4: 400
C5: TIEMPO (HORAS) | D5: COSTO PERSONAL | E5: COSTO RECURSOS
A6: CFN-010-03-01 | B6: Atención de denuncias recibidas directamente del usuario financiero | C6: 41.55 | D6: =C6*$I$4/160 -> 103.875 | E6: 0 | F6: =D6+E6 -> 103.875
A7: CFN-010-01-01 | B7: Atención de quejas recibidas directamente del usuario financiero | C7: 41.55 | D7: =C7*$I$4/160 -> 103.875 | E7: 0 | F7: 103.875
A8: CFN-010-02-01 | B8: Atención de reclamaciones recibidas directamente del usuario financiero | C8: 41.55 | D8: 103.875 | E8: 0 | F8: 103.875
A9: CFN-010-04-01 | B9: Atención de sugerencias del usuario financiero | C9: 41.55 | D9: 103.875 | E9: 0 | F9: 103.875
A10: CFN-003-01-18 | B10: Crédito de primer piso - contingentes (Persona Jurídica) | C10: 440 | D10: =C10*$I$4/160 -> 1100 | E10: 0 | F10: =D10+E10 -> 1100
A11: CFN-003-01-07 | B11: Crédito de primer piso - contingentes (Persona Natural) | C11: 440 | D11: =C11*$I$4/160 -> 1100 | E11: 0 | F11: 1100
A12: CFN-003-04-26 | B12: Crédito de primer piso - Especiales - Apoyo a políticas públicas (Persona Jurídica) | C12: 440 | D12: 1100 | E12: 0 | F12: 1100
A13: CFN-003-04-13 | B13: Crédito de primer piso - Especiales - Apoyo a políticas públicas (Persona Natural) | C13: 440 | D13: 1100 | E13: 0 | F13: 1100
A14: CFN-004-01-14 | B14: Estructuración de Encargos Fiduciarios para personas jurídicas | C14: 115 | D14: 287.5 | E14: 0 | F14: 287.5
A15: CFN-004-01-13 | B15: Estructuración de Encargos Fiduciarios para personas naturales | C15: 115 | D15: 287.5 | E15: 0 | F15: 287.5
A16: CFN-004-01-02 | B16: Estructuracíon de fideicomisos de administración para personas naturales | C16: 115 | D16: 287.5 | E16: 0 | F16: 287.5
A17: CFN-004-01-06 | B17: Estructuración de fideicomisos de garantía para personas jurídicas | C17: 115 | D17: 287.5 | E17: 0 | F17: 287.5
A18: CFN-004-01-01 | B18: Estructuracíon de fideicomisos de garantia para personas naturales | C18: 115 | D18: 287.5 | E18: 0 | F18: 287.5
A19: CFN-004-01-03 | B19: Estructuración de fideicomisos de inmobiliario para personas naturales | C19: 115 | D19: 287.5 | E19: 0 | F19: 287.5
A20: CFN-004-01-10 | B20: Estructuración de fideicomisos de inversión para personas jurídicas | C20: 115 | D20: 287.5 | E20: 0 | F20: 287.5
A21: CFN-004-01-05 | B21: Estructuración de fideicomisos de inversión para personas naturales | C21: 115 | D21: 287.5 | E21: 0 | F21: 287.5
A22: CFN-004-01-09 | B22: Estructuración de fideicomisos de titularización para personas jurídicas | C22: 115 | D22: 287.5 | E22: 0 | F22: 287.5
A23: CFN-004-01-04 | B23: Estructuración de fideicomisos de titularización para personas naturales | C23: 115 | D23: 287.5 | E23: 0 | F23: 287.5
A24: CFN-004-01-08 | B24: Estructuración de fideicomisos inmobiliario para personas jurídicas | C24: 115 | D24: 287.5 | E24: 0 | F24: 287.5
A25: CFN-006-01-02 | B25: Intermediación bursátil ofrecido por la CFN. B.P. a empresas del sector público | C25: 22.834 | D25: 57.085 | E25: 0 | F25: 57.085
A26: CFN- | B26: Concesión de crédito segundo piso (Capital de trabajo) a través de las Instituciones Financieras Intermediarias IFIs | C26: 12.5 | D26: 31.25 | E26: 140.1731542 | F26: 171.4231542
A27: CFN-004-01-07 | B27: Estructuración de fideicomisos de administración para personas jurídicas | C27: 115 | D27: 287.5 | E27: 157.6947984 | F27: 445.1947984
A28: CFN-003-01-05 | B28: Crédito de primer piso - factoring (Persona Natural o Jurídica) | C28: 440 | D28: =C28*$I$4/160 -> 1100 | E28: 192.738087 | F28: 1292.738087
A29: CFN-010-05-01 | B29: Atención a solicitudes de acceso a información pública | C29: 41.55 | D29: 103.875 | E29: 385.4761739 | F29: 489.3511739
A30: CFN- | B30: Solución de obligaciones crediticias de primer piso | C30: 280 | D30: 700 | E30: 648.3008379 | F30: 1348.300838
A31: CFN-003-02-04 | B31: Crédito de primer piso - activo fijo (Persona Jurídica) | C31: 440 | D31: 1100 | E31: 823.5172806 | F31: 1923.517281
A32: CFN-003-02-01 | B32: Crédito de primer piso - activo fijo (Persona Natural) | C32: 440 | D32: 1100 | E32: 1647.034561 | F32: 2747.034561
A33: CFN-003-01-13 | B33: Crédito de primer piso - crédito directo (Persona Jurídica) | C33: 440 | D33: 1100 | E33: 3416.720632 | F33: 4516.720632
A34: CFN-009-01-04 | B34: Emisión de otras certificaciones relativas a los financiamientos de la Institución para personas jurídicas | C34: 1.78 | D34: 4.45 | E34: 0 | F34: 4.45
A35: CFN-003-01-01 | B35: Crédito de primer piso - crédito directo (Persona Natural) | C35: 440 | D35: 1100 | E35: 5887.272474 | F35: 6987.272474
A36: CFN- | B36: Requerimiento de capacitación sobre educación financiera y desarrollo de capacidades para todo público | C36: 28.75 | D36: 71.875 | E36: 0 | F36: 71.875
A37: CFN-009-02-04 | B37: Emisión de otras certificaciones relativas a los financiamientos de la Institución para personas naturales | C37: 1.78 | D37: 4.45 | E37: 0 | F37: 4.45
A38: CFN-008-01-01 | B38: Aceptación de Garantía para acceso al crédito Por parte de la entidad crediticia | C38: 6 | D38: 15 | E38: 0 | F38: 15
A39: CFN- | B39: Requerimiento de Asesoría Financiera Empresarial | C39: 0.8 | D39: 2 | E39: 0 | F39: 2

Sheet AUXILIAR COSTO ADMINISTRACIÓN
A2: TRÁMITE: | B2: CFN-004 (Aplica para todos los casos y trámites )
A3: NO. | B3: ACTIVIDAD | C3: TIEMPO (HORAS)
A4: 1 | B4: Reuniones previas | C4: 15
A5: 2 | B5: Elaboración de medio y propuesta | C5: 9
A6: 3 | B6: Estructuración del fideicomiso | C6: 18
A7: 4 | B7: Elaboración de contrato | C7: 12
A8: 5 | B8: Análisis de borradores | C8: 14
A9: 6 | B9: Revisión del Contrato | C9: 10
A10: 7 | B10: Elevación a escritura pública | C10: 9
A11: 8 | B11: Informe Superintendencia de Compañías | C11: 9
A12: 9 | B12: Obtención del RUC | C12: 12
A13: 10 | B13: Apertura de cuentas bancarias | C13: 7
B20: SUMATORIA ACTIVIDADES | C20: =SUM(C4:C19) -> 115
A24: TRÁMITE: | B24: CFN-003 (Aplica para todos los casos y trámites)
A25: NO. | B25: ACTIVIDAD | C25: TIEMPO (HORAS)
A26: 1 | B26: Recibir solicitud y requisitos. | C26: 1
A27: 2 | B27: Verificar requisitos. | C27: 1
A28: 3 | B28: Crear usuario en Quipux. | C28: 1
A29: 4 | B29: Elaborar oficio de comunicación. | C29: 1
A30: 5 | B30: Comunicar Recepción o No recepción de documentos. | C30: 1
A31: 6 | B31: Generar expediente del cliente o potencial cliente. | C31: 1
A32: 7 | B32: Elaborar árbol de Relacionados. | C32: 3
A33: 8 | B33: Verificar perfil no financiero. | C33: 1
A34: 9 | B34: Solicitar, elaborar y Recibir informe de Operaciones. | C34: 15
A35: 10 | B35: Crear potencial cliente / relacionados en sistema. | C35: 5
A36: 11 | B36: Generar expediente. | C36: 3
A37: 12 | B37: Generar reporte de verificación en listas Nacionales e internacionales | C37: 1
A38: 13 | B38: Consultar Cumplimiento de Justificación de Inversiones. | C38: 1
A39: 14 | B39: Revisar informes. | C39: 1
A40: 15 | B40: Validar consistencia de la documentación del expediente. | C40: 24
A41: 16 | B41: Elaborar Informe de Verificación de Plan de Inversiones. | C41: 4
A42: 17 | B42: Elaborar informe de Cumplimiento de condiciones especiales. | C42: 32
A43: 18 | B43: Cumplimientos de condiciones crédito | C43: 24
A44: 19 | B44: Solicitar y recibir informe de Seguros. | C44: 8
A45: 20 | B45: Solicitar y recibir Informe Legal de Sujeto de crédito. | C45: 32
A46: 21 | B46: Solicitar y recibir informe de Técnico. | C46: 48
A47: 22 | B47: Solicitar y recibir informe de Riesgos. | C47: 72
A48: 23 | B48: Junta de cliente | C48: 88
A49: 24 | B49: Elaborar memorando de presentación a Comité | C49: 8
A50: 25 | B50: Realizar convocatoria | C50: 8
A51: 26 | B51: Aprobar solicitud de crédito | C51: 32
A52: 27 | B52: Notificar al cliente | C52: 24
B53: SUMATORIA ACTIVIDADES | C53: =SUM(C26:C52) -> 440
A57: TRÁMITE: | B57: Concesión de crédito segundo piso (Capital de trabajo) a través de las Instituciones Financieras Intermediarias IFIs
A58: NO. | B58: ACTIVIDAD | C58: TIEMPO (HORAS)
A59: 1 | B59: Requerimiento de Requisitos para firma de Convenio | C59: 0.5
A60: 2 | B60: Firma de convenio | C60: 2
A61: 3 | B61: Requerimiento del SGAS | C61: 1
A62: 4 | B62: Capacitación a las IFI s | C62: 2
A63: 5 | B63: Análisis de la solicitud de crédito | C63: 3
A64: 6 | B64: Aprobación de la solicitud de crédito | C64: 1
A65: 7 | B65: Desembolso de la solicitud de crédito | C65: 3
A66: 8
A67: 9
A68: 10
A69: 11
A70: 12
A71: 13
A72: 14
A73: 15
B75: SUMATORIA ACTIVIDADES | C75: =SUM(C59:C74) -> 12.5
A79: TRÁMITE: | B79: CFN-010 (Aplica para todos los casos y trámites)
A80: NO. | B80: ACTIVIDAD | C80: TIEMPO (HORAS)
A81: 1 | B81: Recibir y registrar ingreso de queja, reclamación, denuncia, sugerencia | C81: =3/60 -> 0.05
A82: 2 | B82: Asignar personal para atención y seguimiento | C82: =2/60 -> 0.03333333333
A83: 3 | B83: Verificar competencia de la CFN BP | C83: =10/60 -> 0.1666666667
A84: 4 | B84: Verificar datos del Usuario Financiero | C84: =5/60 -> 0.08333333333
A85: 5 | B85: Registrar el trámite y confirmar ingreso al Usuario Financiero. | C85: =17/60 -> 0.2833333333
A86: 6 | B86: Identificar tipo de trámite. | C86: 0.01666666667
A87: 7 | B87: Solicitar información a las áreas | C87: =10/60 -> 0.1666666667
B88: Recibir información de las áreas. | C88: 40
B89: Elaborar respuesta motivada | C89: =30/60 -> 0.5
B90: Revisar y remitir propuesta de respuesta motivada | C90: =10/60 -> 0.1666666667
B91: Registrar trámite | C91: =5/60 -> 0.08333333333
A92: 8
B93: SUMATORIA ACTIVIDADES | C93: =SUM(C81:C92) -> 41.55
A97: TRÁMITE: | B97: Requerimiento de Capacitación de Educación Financiera y Desarrollo de Capacidades para todo público
A98: NO. | B98: ACTIVIDAD | C98: TIEMPO (HORAS)
A99: 1 | B99: Recibir solicitud via oficio o correo electrónico | C99: 0.25
A100: 2 | B100: Coordinar con la Institución el horario y el lugar en donde se dictará el programa | C100: 8
A101: 3 | B101: Preparar la información para la presentación | C101: 16
A102: 4 | B102: Realizar la capacitación del programa de acuerdo a lo planificado | C102: 2
A103: 5 | B103: Generar el registro fisico o digital de asistencia por la capacitación dada | C103: 0.25
A104: 6 | B104: Generar los reportes | C104: 1
A105: 7 | B105: Gernerar registro fotográfico | C105: 0.25
A106: 8 | B106: Generar memorando vía quipux al Gerente del área | C106: 0.5
A107: 9 | B107: Generar estadísticas consolidada | C107: 0.5
A108: 10
A109: 11
A110: 12
A111: 13
A112: 14
A113: 15
B115: SUMATORIA ACTIVIDADES | C115: =SUM(C99:C114) -> 28.75
A119: TRÁMITE: | B119: CFN-009 (Aplica parar todos los casos y trámites)
A120: NO. | B120: ACTIVIDAD | C120: TIEMPO (HORAS)
A121: 1 | B121: Revisar en el sistema Qlikview información de clientes, en caso de persona jurídica revisar todos los requisitos | C121: 0.08333333333
A122: 2 | B122: Verificar en el sistema institucional si el solicitante es clientes; y, si mantiene sus obligaciones al día o por cancelar | C122: 0.08333333333
A123: 3 | B123: Elaborar y remitir correo electrónico al área contable si el solicitante mantiene obligaciones pendientes o canceladas | C123: 0.08333333333
A124: 4 | B124: Elaborar certificado con resultado consolidado | C124: 1
A125: 5 | B125: Remitir certificado a Jefe de Cartera para la revisión | C125: 0.033
A126: 6 | B126: Revisar y remitir electrónicamente el certificado para la firma del Sugerente de Cartera y Garantía | C126: 0.25
A127: 7 | B127: Revisión, firma del certificado | C127: 0.1666666667
A128: 8 | B128: Remitir correo con certificado firmado | C128: 0.033
A129: 9 | B129: Subir certificado a la plataforma con respuesta para recepción del solicitante. | C129: 0.05
A130: 10
A131: 11
A132: 12
A133: 13
B135: SUMATORIA ACTIVIDADES | C135: =SUM(C121:C134) -> 1.782666667
A139: TRÁMITE: | B139: CFN-006-01-02 Intermediación bursátil ofrecido por la CFN. B.P. a empresas del sector público
A140: NO. | B140: ACTIVIDAD | C140: TIEMPO (HORAS)
A141: 1 | B141: RECEPCIÓN DE OFICIO O CORREO DEL POSIBLE CLIENTE | C141: 0.167
A142: 2 | B142: ASIGNACIÓN DEL OPERADOR DE VALORES A CARGO | C142: 0.167
A143: 3 | B143: OBTENER INFORMACIÓN PUBLICA DEL CLIENTE Y REQUERIR INFORMACIÓN FALTANTE | C143: 1
A144: 4 | B144: RECEPTAR Y REVISAR INFORMACIÓN ENVIADA POR EL MANDANTE | C144: 2
A145: 5 | B145: GESTIONAR LA SUSCRIPCIÓN DEL G.G. DE CFN | C145: 8
A146: 6 | B146: REMITIR LA DOCUMENTACIÓN COMPLETA DEL MANDANTE A LA SUBGERENCIA DE INSTRUMENTACIÓN Y PAGADURÍA | C146: 1
A147: 7 | B147: RECIBIR Y REVISAR EL ANEXO DE INSTRUCCIÓN DE INTERMEDIACIÓN BURSÁTIL | C147: 2
A148: 8 | B148: NEGOCIACION EN EL SISTEMA BURSATIL | C148: 3
A149: 9 | B149: REGISTRO Y AUTORIZACIÓN DE LA OPERACIÓN EN EL MODULO DE COBIS TESORERÍA | C149: 1
A150: 10 | B150: ENTREGA DE DOCUMENTACIÓN A LA SUBGERENCIA DE INSTRUMENTACIÓN Y PAGADURIA | C150: 0.5
A151: 11 | B151: REVISIÓN DE LA NEGOCIACIÓN Y CIERRE EN EL MODULO COBIS TESORERIA | C151: 2
A152: 12 | B152: OBTENER FACTURA Y CONSTANCIA DE DEPOSITO DEL CLIENTE | C152: 1
A153: 13 | B153: ELABORACION DE OFICIO PARA EL MANDANTE CON DOCUMENTOS SOPORTE DE LA NEGOCIACION REALIZADA | C153: 1
A154: 14
A155: 15
B157: SUMATORIA ACTIVIDADES | C157: =SUM(C141:C156) -> 22.834
A161: TRÁMITE: | B161: Aceptación de Garantía para acceso al crédito Por parte de la entidad crediticia
A162: NO. | B162: ACTIVIDAD | C162: TIEMPO (HORAS)
A163: 1 | B163: Solicitud de la garantía FNG | C163: 2
A164: 2 | B164: Validación del requerimiento solicitado (SRI, Listas reservadas, buro de crédito, no registrar mora con IFIS participantes) | C164: 0.5
A165: 3 | B165: Validación de cargos pagados FNG | C165: 0.5
A166: 4 | B166: Suscripción digital del contrato por parte de la administradora fiduciaria | C166: 2
A167: 5 | B167: Envío físico del contrato suscrito (1 ejemplar) por las partes (banco, clientes y FNG) | C167: 1
A168: 6
A169: 7
A170: 8
A171: 9
A172: 10
A173: 11
A174: 12
A175: 13
A176: 14
A177: 15
B179: SUMATORIA ACTIVIDADES | C179: =SUM(C163:C178) -> 6
A183: TRÁMITE: | B183: Requerimiento de Asesoría Financiera Empresarial
A184: NO. | B184: ACTIVIDAD | C184: TIEMPO (HORAS)
A185: 1 | B185: Elegir una de las modalidades de atención virtual o presencial. | C185: 0.1
A186: 2 | B186: Consultar requerimiento información. | C186: 0.25
A187: 3 | B187: Recibir información requerida. | C187: 0.45
A188: 4
A189: 5
A190: 6
A191: 7
A192: 8
A193: 9
A194: 10
A195: 11
A196: 12
A197: 13
A198: 14
A199: 15
B201: SUMATORIA ACTIVIDADES | C201: =SUM(C185:C200) -> 0.8
A205: TRÁMITE: | B205: Solucion de obligaciones crediticias de primer piso
A206: NO. | B206: ACTIVIDAD | C206: TIEMPO (HORAS)
A207: 1 | B207: Asesoria cliente | C207: 16
A208: 2 | B208: Revision previa de la documentación | C208: 16
A209: 3 | B209: Recepcion de documentacion | C209: 40
A210: 4 | B210: Validacion integral los documentos | C210: 40
A211: 5 | B211: Generacion de informes | C211: 32
A212: 6 | B212: Visita técnica | C212: 40
A213: 7 | B213: Informe de recomendación | C213: 40
A214: 8 | B214: Presentacion a comité | C214: 32
A215: 9 | B215: Aprobación | C215: 8
A216: 10 | B216: intrumenstación | C216: 8
A217: 11 | B217: Firma del contrato del contrato | C217: 8
A218: 12
A219: 13
A220: 14
A221: 15
B223: SUMATORIA ACTIVIDADES | C223: =SUM(C207:C222) -> 280

Sheet TIEMPO DE RESPUESTA
A1: PRIORIZACIÓN DE TRÁMITES ADMINISTRATIVOS
A2: TIEMPO DE RESPUESTA
A4: IDENTIFICADOR | B4: TRÁMITE | C4: TIEMPO RESPUESTA (horas laborables) | D4: PUNTUACIÓN
A5: CFN-010-03-01 | B5: Atención de denuncias recibidas directamente del usuario financiero | C5: 120 | D5: 30
A6: CFN-010-01-01 | B6: Atención de quejas recibidas directamente del usuario financiero | C6: 120 | D6: 30
A7: CFN-010-02-01 | B7: Atención de reclamaciones recibidas directamente del usuario financiero | C7: 120 | D7: 30
A8: CFN-010-04-01 | B8: Atención de sugerencias del usuario financiero | C8: 120 | D8: 30
A9: CFN-003-01-18 | B9: Crédito de primer piso - contingentes (Persona Jurídica) | C9: 440 | D9: 30
A10: CFN-003-01-07 | B10: Crédito de primer piso - contingentes (Persona Natural) | C10: 440 | D10: 30
A11: CFN-003-04-26 | B11: Crédito de primer piso - Especiales - Apoyo a políticas públicas (Persona Jurídica) | C11: 440 | D11: 30
A12: CFN-003-04-13 | B12: Crédito de primer piso - Especiales - Apoyo a políticas públicas (Persona Natural) | C12: 440 | D12: 30
A13: CFN-004-01-14 | B13: Estructuración de Encargos Fiduciarios para personas jurídicas | C13: 115 | D13: 30
A14: CFN-004-01-13 | B14: Estructuración de Encargos Fiduciarios para personas naturales | C14: 115 | D14: 30
A15: CFN-004-01-02 | B15: Estructuracíon de fideicomisos de administración para personas naturales | C15: 115 | D15: 30
A16: CFN-004-01-06 | B16: Estructuración de fideicomisos de garantía para personas jurídicas | C16: 115 | D16: 30
A17: CFN-004-01-01 | B17: Estructuracíon de fideicomisos de garantia para personas naturales | C17: 115 | D17: 30
A18: CFN-004-01-03 | B18: Estructuración de fideicomisos de inmobiliario para personas naturales | C18: 115 | D18: 30
A19: CFN-004-01-10 | B19: Estructuración de fideicomisos de inversión para personas jurídicas | C19: 115 | D19: 30
A20: CFN-004-01-05 | B20: Estructuración de fideicomisos de inversión para personas naturales | C20: 115 | D20: 30
A21: CFN-004-01-09 | B21: Estructuración de fideicomisos de titularización para personas jurídicas | C21: 115 | D21: 30
A22: CFN-004-01-04 | B22: Estructuración de fideicomisos de titularización para personas naturales | C22: 115 | D22: 30
A23: CFN-004-01-08 | B23: Estructuración de fideicomisos inmobiliario para personas jurídicas | C23: 115 | D23: 30
A24: CFN-006-01-02 | B24: Intermediación bursátil ofrecido por la CFN. B.P. a empresas del sector público | C24: 22.864 | D24: 0
A25: CFN- | B25: Concesión de crédito segundo piso (Capital de trabajo) a través de las Instituciones Financieras Intermediarias IFIs | C25: 12 | D25: 0
A26: CFN-004-01-07 | B26: Estructuración de fideicomisos de administración para personas jurídicas | C26: 115 | D26: 30
A27: CFN-003-01-05 | B27: Crédito de primer piso - factoring (Persona Natural o Jurídica) | C27: 440 | D27: 30
A28: CFN-010-05-01 | B28: Atención a solicitudes de acceso a información pública | C28: 120 | D28: 30
A29: CFN- | B29: Solución de obligaciones crediticias de primer piso | C29: 280 | D29: 30
A30: CFN-003-02-04 | B30: Crédito de primer piso - activo fijo (Persona Jurídica) | C30: 440 | D30: 30
A31: CFN-003-02-01 | B31: Crédito de primer piso - activo fijo (Persona Natural) | C31: 440 | D31: 30
A32: CFN-003-01-13 | B32: Crédito de primer piso - crédito directo (Persona Jurídica) | C32: 440 | D32: 30
A33: CFN-009-01-04 | B33: Emisión de otras certificaciones relativas a los financiamientos de la Institución para personas jurídicas | C33: 32 | D33: 0
A34: CFN-003-01-01 | B34: Crédito de primer piso - crédito directo (Persona Natural) | C34: 440 | D34: 30
A35: CFN- | B35: Requerimiento de capacitación sobre educación financiera y desarrollo de capacidades para todo público | C35: 29 | D35: 0
A36: CFN-009-02-04 | B36: Emisión de otras certificaciones relativas a los financiamientos de la Institución para personas naturales | C36: 32 | D36: 0
A37: CFN-008-01-01 | B37: Aceptación de Garantía para acceso al crédito Por parte de la entidad crediticia | C37: 16 | D37: 0
A38: CFN- | B38: Requerimiento de Asesoría Financiera Empresarial | C38: 1 | D38: 0

Sheet CANAL ATENCIÓN
A1: PRIORIZACIÓN DE TRÁMITES ADMINISTRATIVOS
A2: CANAL DE ATENCIÓN
I3: Totalmente en Línea | L3: 0
A4: IDENTIFICADOR | B4: TRÁMITE | C4: CANAL ATENCIÓN | D4: PUNTUACIÓN | I4: No se completa totalmente en línea. | L4: 10
A5: CFN-010-03-01 | B5: Atención de denuncias recibidas directamente del usuario financiero | C5: Totalmente en Línea | D5: =IF(ISBLANK(C5),"",IF(C5="Totalmente en línea",0,IF(C5="Inicia en línea",6,10))) -> 0
A6: CFN-010-01-01 | B6: Atención de quejas recibidas directamente del usuario financiero | C6: Totalmente en Línea | D6: 0
A7: CFN-010-02-01 | B7: Atención de reclamaciones recibidas directamente del usuario financiero | C7: Totalmente en Línea | D7: 0
A8: CFN-010-04-01 | B8: Atención de sugerencias del usuario financiero | C8: Totalmente en Línea | D8: 0
A9: CFN-003-01-18 | B9: Crédito de primer piso - contingentes (Persona Jurídica) | C9: No se completa totalmente en línea. | D9: 10
A10: CFN-003-01-07 | B10: Crédito de primer piso - contingentes (Persona Natural) | C10: No se completa totalmente en línea. | D10: 10
A11: CFN-003-04-26 | B11: Crédito de primer piso - Especiales - Apoyo a políticas públicas (Persona Jurídica) | C11: No se completa totalmente en línea. | D11: 10
A12: CFN-003-04-13 | B12: Crédito de primer piso - Especiales - Apoyo a políticas públicas (Persona Natural) | C12: No se completa totalmente en línea. | D12: 10
A13: CFN-004-01-14 | B13: Estructuración de Encargos Fiduciarios para personas jurídicas | C13: No se completa totalmente en línea. | D13: 10
A14: CFN-004-01-13 | B14: Estructuración de Encargos Fiduciarios para personas naturales | C14: No se completa totalmente en línea. | D14: 10
A15: CFN-004-01-02 | B15: Estructuracíon de fideicomisos de administración para personas naturales | C15: No se completa totalmente en línea. | D15: 10
A16: CFN-004-01-06 | B16: Estructuración de fideicomisos de garantía para personas jurídicas | C16: No se completa totalmente en línea. | D16: 10
A17: CFN-004-01-01 | B17: Estructuracíon de fideicomisos de garantia para personas naturales | C17: No se completa totalmente en línea. | D17: 10
A18: CFN-004-01-03 | B18: Estructuración de fideicomisos de inmobiliario para personas naturales | C18: No se completa totalmente en línea. | D18: 10
A19: CFN-004-01-10 | B19: Estructuración de fideicomisos de inversión para personas jurídicas | C19: No se completa totalmente en línea. | D19: 10
A20: CFN-004-01-05 | B20: Estructuración de fideicomisos de inversión para personas naturales | C20: No se completa totalmente en línea. | D20: 10
A21: CFN-004-01-09 | B21: Estructuración de fideicomisos de titularización para personas jurídicas | C21: No se completa totalmente en línea. | D21: 10
A22: CFN-004-01-04 | B22: Estructuración de fideicomisos de titularización para personas naturales | C22: No se completa totalmente en línea. | D22: 10
A23: CFN-004-01-08 | B23: Estructuración de fideicomisos inmobiliario para personas jurídicas | C23: No se completa totalmente en línea. | D23: 10
A24: CFN-006-01-02 | B24: Intermediación bursátil ofrecido por la CFN. B.P. a empresas del sector público | C24: No se completa totalmente en línea. | D24: 10
A25: CFN- | B25: Concesión de crédito segundo piso (Capital de trabajo) a través de las Instituciones Financieras Intermediarias IFIs | C25: No se completa totalmente en línea. | D25: 10
A26: CFN-004-01-07 | B26: Estructuración de fideicomisos de administración para personas jurídicas | C26: No se completa totalmente en línea. | D26: 10
A27: CFN-003-01-05 | B27: Crédito de primer piso - factoring (Persona Natural o Jurídica) | C27: No se completa totalmente en línea. | D27: 10
A28: CFN-010-05-01 | B28: Atención a solicitudes de acceso a información pública | C28: Totalmente en Línea | D28: 0
A29: CFN- | B29: Solución de obligaciones crediticias de primer piso | C29: No se completa totalmente en línea. | D29: 10
A30: CFN-003-02-04 | B30: Crédito de primer piso - activo fijo (Persona Jurídica) | C30: No se completa totalmente en línea. | D30: 10
A31: CFN-003-02-01 | B31: Crédito de primer piso - activo fijo (Persona Natural) | C31: No se completa totalmente en línea. | D31: 10
A32: CFN-003-01-13 | B32: Crédito de primer piso - crédito directo (Persona Jurídica) | C32: No se completa totalmente en línea. | D32: 10
A33: CFN-009-01-04 | B33: Emisión de otras certificaciones relativas a los financiamientos de la Institución para personas jurídicas | C33: Totalmente en Línea | D33: 0
A34: CFN-003-01-01 | B34: Crédito de primer piso - crédito directo (Persona Natural) | C34: No se completa totalmente en línea. | D34: 10
A35: CFN- | B35: Requerimiento de capacitación sobre educación financiera y desarrollo de capacidades para todo público | C35: Totalmente en Línea | D35: 0
A36: CFN-009-02-04 | B36: Emisión de otras certificaciones relativas a los financiamientos de la Institución para personas naturales | C36: Totalmente en Línea | D36: 0
A37: CFN-008-01-01 | B37: Aceptación de Garantía para acceso al crédito Por parte de la entidad crediticia | C37: Totalmente en Línea | D37: 0
A38: CFN- | B38: Requerimiento de Asesoría Financiera Empresarial | C38: Totalmente en Línea | D38: 0
